bitfinex/quotes_BTCUSD_20241206
["timestamp","ask_amount","ask_price","bid_price","bid_amount"]
[1733515154147,0.64444345,101450.0,101440.0,0.0017394]
[1733515154568,0.64488512,101450.0,101440.0,0.0017394]
[1733515154957,0.47731777,101450.0,101440.0,0.0017394]
[1733515155139,0.44620316,101450.0,101440.0,0.0017394]
[1733515155373,0.24362951,101450.0,101440.0,0.0017394]
[1733515156968,0.41662951,101450.0,101440.0,0.0017394]
[1733515161250,0.46662951,101450.0,101440.0,0.0017394]
[1733515161628,0.19712951,101450.0,101440.0,0.0017394]
[1733515161835,0.11502951,101450.0,101440.0,0.0017394]
[1733515162829,0.10602951,101450.0,101440.0,0.0017394]
[1733515163032,0.10002951,101450.0,101440.0,0.0017394]
[1733515163231,0.10702951,101450.0,101440.0,0.0017394]
[1733515163547,0.24402951,101450.0,101440.0,0.0017394]
[1733515163944,0.32444412,101450.0,101440.0,0.0017394]
[1733515164164,0.34744412,101450.0,101440.0,0.0017394]
[1733515164402,0.34244412,101450.0,101440.0,0.0017394]
[1733515164615,0.11302951,101450.0,101440.0,0.0017394]
[1733515165250,0.10602951,101450.0,101440.0,0.0017394]
[1733515165888,0.11502951,101450.0,101440.0,0.0017394]
[1733515166971,0.10902951,101450.0,101440.0,0.0017394]
[1733515167205,0.11602951,101450.0,101440.0,0.0017394]
[1733515167875,0.10902951,101450.0,101440.0,0.0017394]
[1733515168024,0.11402951,101450.0,101440.0,0.0017394]
[1733515168238,0.11489951,101450.0,101440.0,0.0017394]
[1733515168848,0.10589951,101450.0,101440.0,0.0017394]
[1733515169261,0.11389951,101450.0,101440.0,0.0017394]
[1733515169477,0.10889951,101450.0,101440.0,0.0017394]
[1733515169682,0.11489951,101450.0,101440.0,0.0017394]
[1733515170334,0.10889951,101450.0,101440.0,0.0017394]
[1733515170541,0.11389951,101450.0,101440.0,0.0017394]
[1733515170979,0.11389951,101450.0,101440.0,0.2017394]
[1733515171417,0.01387,101450.0,101440.0,0.2017394]
[1733515171830,0.01387,101450.0,101440.0,0.2812394]
[1733515172285,0.01387,101450.0,101440.0,0.3297394]
[1733515172499,0.00887,101450.0,101440.0,0.3297394]
[1733515172718,0.00287,101450.0,101440.0,0.3297394]
[1733515172936,0.00787,101450.0,101440.0,0.3297394]
[1733515173140,0.00587,101450.0,101440.0,0.3297394]
[1733515173376,0.00087,101450.0,101440.0,0.3297394]
[1733515173591,0.00187,101450.0,101440.0,0.36552978]
[1733515175108,0.00287,101450.0,101440.0,0.36552978]
[1733515186594,0.00287,101450.0,101440.0,0.23752978]
[1733515190770,0.00287,101450.0,101440.0,0.46535929]
[1733515191002,0.0008698,101480.0,101470.0,0.15]
[1733515191212,0.0008698,101480.0,101470.0,0.20098543]
[1733515191463,0.0008698,101480.0,101470.0,0.2]
[1733515192208,0.0088698,101480.0,101470.0,0.2]
[1733515192656,0.0008698,101480.0,101470.0,0.2]
[1733515192900,0.0038698,101480.0,101470.0,0.2]
[1733515193101,0.0018698,101480.0,101470.0,0.2]
[1733515193531,0.0028698,101480.0,101470.0,0.2]
[1733515194477,0.0018698,101480.0,101470.0,0.2]
[1733515194656,0.0018698,101480.0,101470.0,0.23581037]
[1733515194873,0.0008698,101480.0,101470.0,0.23581037]
[1733515195118,0.0008698,101480.0,101470.0,0.23681037]
[1733515195327,0.0008698,101480.0,101470.0,0.23981037]
[1733515195506,0.0008698,101480.0,101470.0,0.23881037]
[1733515195952,0.0008698,101480.0,101470.0,0.23981037]
[1733515200707,0.0788698,101480.0,101470.0,0.08981037]
[1733515201272,0.0788698,101480.0,101470.0,0.08881037]
[1733515201471,0.0798698,101480.0,101470.0,0.08881037]
[1733515201615,0.0798698,101480.0,101470.0,0.08581037]
[1733515201815,0.0808698,101480.0,101470.0,0.08581037]
[1733515202463,0.18089931,101480.0,101470.0,0.08581037]
[1733515202688,0.18089931,101480.0,101470.0,0.03581037]
[1733515202927,0.18089931,101480.0,101460.0,0.2]
[1733515203126,0.0028698,101480.0,101470.0,0.05]
[1733515203325,0.0028698,101480.0,101470.0,0.27758541]
[1733515203521,0.0028698,101480.0,101470.0,0.2766]
[1733515203963,0.0018698,101480.0,101470.0,0.2766]
[1733515204416,0.0018698,101480.0,101470.0,0.39962951]
[1733515204631,0.0018698,101480.0,101470.0,0.49582951]
[1733515205104,0.0028698,101480.0,101470.0,0.49582951]
[1733515205327,0.0028698,101480.0,101470.0,0.75963278]
[1733515205781,0.0018698,101480.0,101470.0,0.80963278]
[1733515205978,0.0018698,101480.0,101470.0,1.1991548]
[1733515206232,0.0008698,101480.0,101470.0,1.1991548]
[1733515206464,0.0008698,101480.0,101470.0,4.84635153]
[1733515206669,0.0008698,101480.0,101470.0,4.30483875]
[1733515206881,0.0008698,101480.0,101470.0,0.83835153]
[1733515207091,0.0008698,101480.0,101470.0,0.7623615]
[1733515207295,0.0008698,101480.0,101470.0,0.7633615]
[1733515207731,0.0008698,101480.0,101470.0,0.59033199]
[1733515207956,0.0008698,101480.0,101470.0,0.64033199]
[1733515208211,0.0008698,101480.0,101470.0,0.47682951]
[1733515208435,0.0008698,101480.0,101470.0,0.49982951]
[1733515208643,0.0008698,101480.0,101470.0,0.7633615]
[1733515209310,0.0008698,101480.0,101470.0,0.44982951]
[1733515209528,0.0008698,101480.0,101470.0,0.227]
[1733515209968,0.0008698,101480.0,101470.0,0.204]
[1733515210175,0.0008698,101480.0,101470.0,0.054]
[1733515213622,0.0008698,101480.0,101460.0,0.26236766]
[1733515213838,0.0008698,101480.0,101470.0,0.00098534]
[1733515214047,0.0008698,101480.0,101460.0,0.03682504]
[1733515214253,0.0008698,101480.0,101460.0,0.00098534]
[1733515215733,0.0018698,101480.0,101460.0,0.15798534]
[1733515218385,0.10002951,101470.0,101460.0,0.007]
[1733515219589,0.10002951,101470.0,101460.0,0.003]
[1733515219984,0.10202951,101470.0,101450.0,0.03785273]
[1733515220437,0.002,101470.0,101460.0,0.00198554]
[1733515220686,0.002,101470.0,101460.0,0.15198554]
[1733515221256,0.002,101470.0,101460.0,0.15098554]
[1733515221462,0.002,101470.0,101460.0,0.32021505]
[1733515221604,0.0008698,101480.0,101470.0,0.0999]
[1733515221803,0.0008698,101480.0,101470.0,0.2499]
[1733515222043,0.0008698,101480.0,101470.0,0.39992951]
[1733515222243,0.0008698,101480.0,101470.0,0.66405913]
[1733515222951,0.0008698,101480.0,101470.0,0.66505913]
[1733515223151,0.0008698,101480.0,101470.0,0.64205913]
[1733515223813,0.0008698,101480.0,101470.0,0.76793341]
[1733515224946,0.0008698,101480.0,101470.0,0.76893341]
[1733515225857,0.10089931,101480.0,101470.0,0.26599732]
[1733515226067,0.17999931,101480.0,101470.0,0.002]
[1733515226295,0.28322787,101480.0,101470.0,0.002]
[1733515226521,0.25299931,101480.0,101470.0,0.002]
[1733515226723,0.25299931,101480.0,101470.0,0.001]
[1733515227191,0.25399931,101480.0,101470.0,0.001]
[1733515227622,0.25299931,101480.0,101470.0,0.001]
[1733515227862,0.25899931,101480.0,101460.0,0.0017398]
[1733515228079,0.10002951,101470.0,101460.0,0.0017398]
[1733515229664,0.10802951,101470.0,101460.0,0.0017398]
[1733515230521,0.013,101470.0,101460.0,0.0017398]
[1733515230724,0.013,101470.0,101460.0,0.1517398]
[1733515231939,0.013,101470.0,101460.0,0.15272521]
[1733515234272,0.11302951,101470.0,101460.0,0.0017398]
[1733515234907,0.11302951,101470.0,101460.0,0.2517398]
[1733515238552,0.23772951,101470.0,101460.0,0.2517398]
[1733515242276,0.31072951,101470.0,101460.0,0.2517398]
[1733515242490,0.36072951,101470.0,101460.0,0.2517398]
[1733515243373,0.35572951,101470.0,101460.0,0.2517398]
[1733515243573,0.36372951,101470.0,101460.0,0.2517398]
[1733515243788,0.26372951,101470.0,101460.0,0.2517398]
[1733515244194,0.29429184,101470.0,101460.0,0.2517398]
[1733515244634,0.28629184,101470.0,101460.0,0.1736398]
[1733515244837,0.27829184,101470.0,101460.0,0.1736398]
[1733515245063,0.53209298,101470.0,101460.0,0.1736398]
[1733515245286,0.52309298,101470.0,101460.0,0.1736398]
[1733515245495,0.53209298,101470.0,101460.0,0.1736398]
[1733515245706,0.68209298,101470.0,101460.0,0.1736398]
[1733515245917,0.78183933,101470.0,101460.0,0.1736398]
[1733515246535,0.68202399,101470.0,101460.0,0.1736398]
[1733515248527,0.68202399,101470.0,101460.0,0.1486398]
[1733515251333,0.79382365,101470.0,101460.0,0.1003794]
[1733515251543,0.79469345,101470.0,101460.0,0.1003794]
[1733515251953,0.498322,101460.0,101450.0,0.00174]
[1733515252108,0.62891384,101460.0,101450.0,0.00174]
[1733515253936,0.63791384,101460.0,101450.0,0.00174]
[1733515254173,0.59835151,101460.0,101450.0,0.00174]
[1733515254586,0.61635151,101460.0,101450.0,0.00174]
[1733515255907,0.34622951,101460.0,101450.0,0.00174]
[1733515256113,0.24822951,101460.0,101450.0,0.00174]
[1733515256532,0.29822951,101460.0,101450.0,0.00174]
[1733515257154,0.47122951,101460.0,101450.0,0.00174]
[1733515259065,0.023,101450.0,101440.0,0.0009794]
[1733515259240,0.12302951,101450.0,101440.0,0.0009794]
[1733515260761,0.14002951,101450.0,101440.0,0.0009794]
[1733515260952,0.11702951,101450.0,101440.0,0.0767794]
[1733515261174,0.11702951,101450.0,101440.0,0.1222794]
[1733515261600,0.11702951,101450.0,101440.0,0.2722794]
[1733515262019,0.017,101450.0,101440.0,0.2722794]
[1733515262134,0.009,101450.0,101440.0,0.2722794]
[1733515262970,0.10002951,101450.0,101440.0,0.2722794]
[1733515263192,0.10802951,101450.0,101440.0,0.2722794]
[1733515263621,0.014,101450.0,101440.0,0.2722794]
[1733515264057,0.008,101450.0,101440.0,0.2722794]
[1733515264473,0.013,101450.0,101440.0,0.2722794]
[1733515265100,0.008,101450.0,101440.0,0.2722794]
[1733515265541,0.01,101450.0,101440.0,0.2722794]
[1733515265967,0.002,101450.0,101440.0,0.2722794]
[1733515266400,0.004,101450.0,101440.0,0.37230891]
[1733515266612,0.002,101450.0,101440.0,0.37230891]
[1733515266843,0.0008698,101470.0,101460.0,0.125]
[1733515267060,0.0008698,101470.0,101460.0,0.12598543]
[1733515267952,0.0058698,101470.0,101460.0,0.12598543]
[1733515269099,0.0138698,101470.0,101460.0,0.12598543]
[1733515269957,0.0138698,101470.0,101460.0,0.27598543]
[1733515270166,0.0138698,101470.0,101460.0,0.275]
[1733515270626,0.0138698,101470.0,101460.0,0.31572828]
[1733515272085,0.0088698,101470.0,101460.0,0.31572828]
[1733515272497,0.0008698,101470.0,101460.0,0.31572828]
[1733515272928,0.0068698,101470.0,101460.0,0.31572828]
[1733515273576,0.0108698,101470.0,101460.0,0.31572828]
[1733515273811,0.0108698,101470.0,101460.0,0.41575779]
[1733515274029,0.0088698,101470.0,101460.0,0.51575779]
[1733515274270,0.0088698,101470.0,101460.0,0.77913451]
[1733515274479,0.0098698,101470.0,101460.0,0.80213451]
[1733515275332,0.0008698,101480.0,101470.0,0.2775]
[1733515275573,0.0008698,101480.0,101470.0,0.42752951]
[1733515276005,0.0008698,101480.0,101470.0,0.47752951]
[1733515276687,0.0098698,101480.0,101470.0,0.47752951]
[1733515277076,0.0008698,101480.0,101470.0,0.47752951]
[1733515277238,0.0008698,101480.0,101470.0,0.50052951]
[1733515277427,0.0008698,101480.0,101470.0,0.50352951]
[1733515277630,0.0508699,101490.0,101480.0,0.3243]
[1733515277823,0.0508699,101490.0,101480.0,0.44732951]
[1733515278073,0.0508699,101490.0,101480.0,3.48032951]
[1733515278974,0.0008691,101550.0,101510.0,0.15]
[1733515279183,0.10002951,101540.0,101520.0,0.00098484]
[1733515280674,0.10902951,101540.0,101520.0,0.00198484]
[1733515281084,0.11702951,101540.0,101520.0,0.00198484]
[1733515281816,0.10802951,101540.0,101520.0,0.00098484]
[1733515282283,0.11102951,101540.0,101520.0,0.00098484]
[1733515282483,0.10302951,101540.0,101520.0,0.00098484]
[1733515283107,0.10602951,101540.0,101520.0,0.00098484]
[1733515283732,0.18362951,101540.0,101520.0,0.00098484]
[1733515283946,0.28112951,101540.0,101500.0,0.0819]
[1733515284170,0.10002951,101530.0,101500.0,0.0819]
[1733515284398,0.10002951,101530.0,101510.0,0.00098506]
[1733515285232,0.10002951,101530.0,101510.0,0.15098506]
[1733515286248,0.10702951,101530.0,101510.0,0.15098506]
[1733515286467,0.10002951,101530.0,101510.0,0.15098506]
[1733515286674,0.11602951,101530.0,101510.0,0.15198506]
[1733515290510,0.016,101530.0,101510.0,0.15198506]
[1733515290938,0.016,101530.0,101520.0,0.0771]
[1733515291150,0.016,101530.0,101520.0,0.27608485]
[1733515291376,0.016,101530.0,101520.0,0.2751]
[1733515292099,0.0008688,101540.0,101520.0,0.2751]
[1733515292332,0.009,101530.0,101520.0,0.2761]
[1733515292574,0.015,101530.0,101520.0,0.2761]
[1733515293019,0.10089831,101540.0,101520.0,0.2751]
[1733515293490,0.11789831,101540.0,101520.0,0.2761]
[1733515293712,0.11789831,101540.0,101520.0,0.2751]
[1733515293944,0.10989831,101540.0,101520.0,0.2751]
[1733515294921,0.007,101530.0,101520.0,0.2761]
[1733515295358,0.10289831,101540.0,101520.0,0.2751]
[1733515295568,0.10589831,101540.0,101520.0,0.2751]
[1733515295791,0.10089831,101540.0,101520.0,0.2751]
[1733515296021,0.003,101530.0,101520.0,0.26045126]
[1733515296259,0.008,101530.0,101520.0,0.26045126]
[1733515296498,0.003,101530.0,101520.0,0.26045126]
[1733515296728,0.10089831,101540.0,101520.0,0.26045126]
[1733515296959,0.10589831,101540.0,101520.0,0.26045126]
[1733515298153,0.10089831,101540.0,101520.0,0.26045126]
[1733515298388,0.005,101530.0,101520.0,0.26045126]
[1733515298615,0.003,101530.0,101520.0,0.26045126]
[1733515299097,0.10002951,101530.0,101500.0,0.1279]
[1733515300039,0.10502951,101530.0,101500.0,0.1279]
[1733515300260,0.10002951,101520.0,101500.0,0.0786]
[1733515300486,0.10002951,101520.0,101500.0,0.11325466]
[1733515301217,0.18162951,101520.0,101500.0,0.03465466]
[1733515301644,0.18162951,101520.0,101500.0,0.001]
[1733515302304,0.18162951,101520.0,101490.0,0.04798507]
[1733515302514,0.18362951,101520.0,101490.0,0.04798507]
[1733515303154,0.18562951,101520.0,101490.0,0.04798507]
[1733515303365,0.18362951,101520.0,101490.0,0.04798507]
[1733515304252,0.18362951,101520.0,101490.0,0.08153684]
[1733515304484,0.18162951,101520.0,101490.0,0.08153684]
[1733515304703,0.18162951,101520.0,101490.0,0.08253684]
[1733515307360,0.18162951,101520.0,101490.0,0.08427424]
[1733515313204,0.23012951,101520.0,101440.0,0.17471649]
[1733515313423,0.23012951,101520.0,101460.0,0.023]
[1733515313424,0.05,101500.0,101460.0,0.023]
[1733515313637,0.05,101500.0,101470.0,1.87201463]
[1733515313901,0.05,101500.0,101470.0,0.10101463]
[1733515314116,0.1,101510.0,101470.0,0.10101463]
[1733515314337,0.20002951,101510.0,101470.0,0.10101463]
[1733515314568,0.05,101510.0,101480.0,0.023]
[1733515314814,0.101,101520.0,101490.0,0.10101455]
[1733515315023,0.001,101500.0,101490.0,0.10101455]
[1733515315231,0.001,101500.0,101490.0,0.27401455]
[1733515315438,0.001,101500.0,101490.0,0.27302951]
[1733515315879,0.001,101510.0,101500.0,0.15]
[1733515316313,0.001,101510.0,101500.0,0.2278]
[1733515316732,0.001,101510.0,101500.0,0.32782951]
[1733515317410,0.1008687,101530.0,101500.0,0.32782951]
[1733515317656,0.1008687,101530.0,101510.0,0.00098489]
[1733515318728,0.1048687,101530.0,101510.0,0.00098489]
[1733515318956,0.1138687,101530.0,101510.0,0.00098489]
[1733515320088,0.1098687,101530.0,101510.0,0.00098489]
[1733515320349,0.0598687,101530.0,101510.0,0.00098489]
[1733515320560,0.0658687,101530.0,101510.0,0.00098489]
[1733515321206,0.0008687,101520.0,101510.0,0.00098489]
[1733515322288,0.0008687,101520.0,101510.0,4.6001894]
[1733515322498,0.0008687,101520.0,101510.0,4.59920451]
[1733515322943,0.0008687,101520.0,101510.0,2.65002951]
[1733515323165,0.0008687,101520.0,101510.0,0.73502951]
[1733515323396,0.0048687,101520.0,101510.0,0.274]
[1733515323660,0.0118687,101520.0,101510.0,0.275]
[1733515323865,0.0078687,101520.0,101510.0,0.274]
[1733515324128,0.0088687,101520.0,101510.0,0.274]
[1733515324356,0.0098687,101520.0,101510.0,0.274]
[1733515325504,0.0098687,101520.0,101510.0,0.2739]
[1733515326196,0.0098687,101520.0,101510.0,0.2274]
[1733515329498,0.0098687,101520.0,101500.0,0.17315329]
[1733515329728,0.0098687,101520.0,101510.0,0.00098482]
[1733515330416,0.0088687,101520.0,101510.0,0.00098482]
[1733515330647,0.0008687,101520.0,101510.0,0.00098482]
[1733515330884,0.0008687,101520.0,101510.0,0.12401433]
[1733515331124,0.0008687,101520.0,101510.0,4.14001433]
[1733515331363,0.0008687,101520.0,101510.0,4.13902951]
[1733515331589,0.0008687,101520.0,101510.0,4.28902951]
[1733515332028,0.0018687,101520.0,101510.0,4.28902951]
[1733515332250,0.001,101520.0,101510.0,4.28902951]
[1733515332478,0.0008687,101530.0,101520.0,0.265]
[1733515332713,0.0008688,101540.0,101530.0,0.0784]
[1733515332936,0.0008688,101540.0,101530.0,4.53158898]
[1733515333188,0.0008688,101540.0,101530.0,4.53060451]
[1733515333402,0.0008688,101540.0,101530.0,3.20042951]
[1733515334024,0.0018688,101540.0,101530.0,3.20742951]
[1733515334240,0.0018688,101540.0,101530.0,1.79742951]
[1733515334469,0.0018688,101540.0,101530.0,1.46742951]
[1733515334688,0.0018688,101540.0,101530.0,0.33842951]
[1733515334905,0.0018688,101540.0,101530.0,0.91642951]
[1733515335035,0.0018688,101540.0,101530.0,0.79442951]
[1733515335469,0.0018688,101540.0,101530.0,0.68442951]
[1733515335949,0.0018688,101540.0,101530.0,0.65542951]
[1733515336355,0.0018688,101540.0,101530.0,0.33842951]
[1733515336720,0.0018688,101540.0,101530.0,1.71542951]
[1733515336929,0.0018688,101540.0,101530.0,0.55942951]
[1733515338361,0.0018688,101540.0,101530.0,0.28302951]
[1733515338563,0.0018688,101540.0,101530.0,0.11002951]
[1733515338767,0.0018688,101540.0,101530.0,0.01098466]
[1733515338985,0.0483688,101540.0,101530.0,0.01]
[1733515339441,0.0018688,101540.0,101530.0,0.14434221]
[1733515339706,0.0008688,101540.0,101530.0,4.38300451]
[1733515340144,0.0028688,101540.0,101530.0,4.55600451]
[1733515340351,0.0018688,101540.0,101530.0,4.55600451]
[1733515340567,0.0008688,101540.0,101530.0,4.55900451]
[1733515341235,0.0018688,101540.0,101530.0,4.56600451]
[1733515341911,0.0018688,101540.0,101530.0,2.44282951]
[1733515342133,0.0018688,101540.0,101530.0,1.08482951]
[1733515342359,0.0018688,101540.0,101530.0,1.08182951]
[1733515342560,0.0018688,101540.0,101530.0,1.08482951]
[1733515343044,0.0018688,101540.0,101530.0,0.97202951]
[1733515343703,0.0018688,101540.0,101530.0,0.90592951]
[1733515343925,0.0018688,101540.0,101530.0,0.90766631]
[1733515345095,0.0018688,101540.0,101530.0,0.6347368]
[1733515345306,0.18129831,101540.0,101530.0,0.0117368]
[1733515345516,0.18225465,101540.0,101530.0,0.0117368]
[1733515345730,0.1812688,101540.0,101530.0,0.0117368]
[1733515346179,0.1812688,101540.0,101530.0,0.0087368]
[1733515346419,0.1802688,101540.0,101530.0,0.0017368]
[1733515346640,0.22959831,101540.0,101530.0,0.0017368]
[1733515346876,0.23459831,101540.0,101530.0,0.0017368]
[1733515347097,0.23159831,101540.0,101530.0,0.0017368]
[1733515347319,0.23259831,101540.0,101530.0,0.0017368]
[1733515347547,0.23359831,101540.0,101530.0,0.0017368]
[1733515347764,0.23259831,101540.0,101530.0,0.0017368]
[1733515347979,0.22659831,101540.0,101530.0,0.0017368]
[1733515348195,0.22759831,101540.0,101530.0,0.0017368]
[1733515348831,0.39580093,101540.0,101530.0,0.0017368]
[1733515349064,0.37859831,101540.0,101530.0,0.0017368]
[1733515349735,0.38459831,101540.0,101530.0,0.0027368]
[1733515350179,0.38959831,101540.0,101530.0,0.0027368]
[1733515352651,0.42270206,101540.0,101530.0,0.0027368]
[1733515353277,0.47270206,101540.0,101530.0,0.0027368]
[1733515355762,0.42270206,101540.0,101530.0,0.0027368]
[1733515358405,0.23959831,101540.0,101530.0,0.0027368]
[1733515365620,0.38959831,101540.0,101530.0,0.0027368]
[1733515366284,0.46259831,101540.0,101530.0,0.0027368]
[1733515366498,0.3303,101530.0,101520.0,0.00098503]
[1733515366744,0.43032951,101530.0,101520.0,0.00098503]
[1733515367192,0.50332951,101530.0,101520.0,0.00098503]
[1733515367896,0.50632951,101530.0,101520.0,0.00098503]
[1733515368080,0.2,101520.0,101500.0,0.05]
[1733515368292,0.37371536,101510.0,101500.0,0.05]
[1733515368527,0.37272951,101510.0,101500.0,0.05]
[1733515369599,0.37672951,101510.0,101500.0,0.05]
[1733515370947,0.42972951,101510.0,101500.0,0.05]
[1733515371156,0.54152917,101510.0,101500.0,0.05]
[1733515371375,0.56452917,101510.0,101500.0,0.05]
[1733515371582,0.62598209,101510.0,101500.0,0.05]
[1733515372298,0.70855317,101510.0,101500.0,0.05]
[1733515372513,0.51552917,101510.0,101500.0,0.05]
[1733515372716,0.52452917,101510.0,101500.0,0.05]
[1733515373785,0.51652917,101510.0,101500.0,0.05]
[1733515374002,0.52452917,101510.0,101500.0,0.05]
[1733515374206,0.323,101500.0,101490.0,0.0017374]
[1733515374424,0.55232951,101500.0,101490.0,0.0017374]
[1733515374630,0.50232951,101500.0,101490.0,0.0017374]
[1733515375518,0.51132951,101500.0,101490.0,0.0017374]
[1733515375738,0.51732951,101500.0,101490.0,0.0017374]
[1733515376163,0.46732951,101500.0,101490.0,0.0017374]
[1733515376375,0.39432951,101500.0,101490.0,0.0017374]
[1733515376591,0.11502951,101500.0,101490.0,0.0017374]
[1733515376828,0.16502951,101500.0,101490.0,0.0017374]
[1733515377788,0.05,101490.0,101450.0,0.023]
[1733515378023,0.20902951,101500.0,101460.0,0.10101478]
[1733515378238,0.112,101500.0,101460.0,0.10101478]
[1733515378656,0.109,101500.0,101460.0,0.10101478]
[1733515378873,0.1,101500.0,101460.0,0.10101478]
[1733515379520,0.104,101500.0,101460.0,0.10101478]
[1733515379727,0.05,101500.0,101460.0,0.10101478]
[1733515379937,0.051,101500.0,101470.0,0.15]
[1733515380152,0.051,101500.0,101480.0,0.00098521]
[1733515380370,0.001,101500.0,101480.0,0.10101472]
[1733515380814,0.05,101510.0,101490.0,0.1195]
[1733515381059,0.1,101520.0,101500.0,0.00098507]
[1733515381278,0.20002951,101520.0,101500.0,0.00098507]
[1733515381945,0.15002951,101520.0,101500.0,0.00098507]
[1733515382394,0.05,101520.0,101500.0,0.00098507]
[1733515382623,0.052,101520.0,101500.0,0.00098507]
[1733515383346,0.055,101520.0,101500.0,0.15098507]
[1733515384252,0.053,101520.0,101500.0,0.15098507]
[1733515384520,0.05,101520.0,101500.0,0.15098507]
[1733515384731,0.05,101520.0,101500.0,0.15198507]
[1733515385178,0.20002951,101520.0,101500.0,0.151]
[1733515385415,0.20002951,101520.0,101500.0,0.19146247]
[1733515386047,0.20002951,101520.0,101500.0,0.19346247]
[1733515386250,0.20002951,101520.0,101500.0,0.19444749]
[1733515386470,0.20002951,101520.0,101500.0,0.19244749]
[1733515386681,0.20102951,101520.0,101500.0,0.19844749]
[1733515386881,0.20102951,101520.0,101500.0,0.19744749]
[1733515387282,0.20102951,101520.0,101500.0,0.20044749]
[1733515389130,0.20102951,101520.0,101500.0,0.20218429]
[1733515389351,0.20102951,101520.0,101500.0,0.20119927]
[1733515389931,0.1,101510.0,101500.0,0.0107368]
[1733515390874,0.1,101510.0,101500.0,0.0077368]
[1733515391250,0.1,101510.0,101500.0,0.0107368]
[1733515391630,0.17831536,101510.0,101500.0,0.0107368]
[1733515391840,0.22481536,101510.0,101500.0,0.0107368]
[1733515392057,0.22382951,101510.0,101500.0,0.0047368]
[1733515392484,0.22482951,101510.0,101500.0,0.0117368]
[1733515392710,0.22382951,101510.0,101500.0,0.0047368]
[1733515392925,0.22882951,101510.0,101500.0,0.0047368]
[1733515393134,0.22882951,101510.0,101500.0,0.0017368]
[1733515393338,0.23182951,101510.0,101500.0,0.0017368]
[1733515394007,0.2318,101510.0,101500.0,0.0017368]
[1733515394208,0.108,101510.0,101500.0,0.0017368]
[1733515396328,0.058,101510.0,101500.0,0.0017368]
[1733515396984,0.108,101510.0,101500.0,0.0017368]
[1733515397455,0.058,101510.0,101500.0,0.0017368]
[1733515397937,0.108,101510.0,101500.0,0.0017368]
[1733515398260,0.058,101510.0,101500.0,0.0017368]
[1733515398973,0.008,101510.0,101500.0,0.0017368]
[1733515399180,0.008,101510.0,101500.0,0.23272182]
[1733515399335,0.008,101510.0,101500.0,0.2317368]
[1733515399741,0.1,101520.0,101500.0,0.2317368]
[1733515400155,0.002,101510.0,101500.0,0.2317368]
[1733515400622,0.001,101510.0,101500.0,0.2317368]
[1733515400783,0.1018691,101520.0,101500.0,0.2317368]
[1733515401155,0.1028691,101520.0,101500.0,0.2317368]
[1733515402351,0.1018691,101520.0,101500.0,0.2317368]
[1733515402835,0.002,101510.0,101500.0,0.2317368]
[1733515403033,0.002,101510.0,101500.0,0.1517368]
[1733515403237,0.001,101510.0,101500.0,0.15272181]
[1733515404131,0.1008691,101520.0,101500.0,0.15272181]
[1733515404367,0.001,101510.0,101500.0,0.15272181]
[1733515404591,0.002,101510.0,101500.0,0.15272181]
[1733515405879,0.001,101510.0,101500.0,0.25275132]
[1733515406062,0.001,101510.0,101500.0,0.27476631]
[1733515406312,0.0018691,101520.0,101500.0,0.27476631]
[1733515406543,0.0018691,101520.0,101510.0,0.00098491]
[1733515407005,0.0018691,101520.0,101500.0,0.023]
[1733515407211,0.001,101510.0,101500.0,0.023]
[1733515407419,0.002,101510.0,101500.0,0.023]
[1733515408097,0.001,101510.0,101500.0,0.023]
[1733515408978,0.0008691,101520.0,101500.0,0.023]
[1733515409186,0.0038691,101520.0,101500.0,0.023]
[1733515409394,0.001,101510.0,101500.0,0.023]
[1733515410075,0.001,101510.0,101500.0,0.173]
[1733515410540,0.001,101510.0,101500.0,0.34822951]
[1733515410744,0.001,101510.0,101500.0,4.55040451]
[1733515410927,0.001,101510.0,101500.0,4.58870451]
[1733515411391,0.002,101510.0,101500.0,4.58870451]
[1733515412060,0.001,101510.0,101500.0,4.58870451]
[1733515412530,0.0008691,101520.0,101500.0,4.51450451]
[1733515412741,0.0008691,101520.0,101510.0,4.55040451]
[1733515413429,0.0008691,101520.0,101510.0,4.58870451]
[1733515414102,0.0008691,101520.0,101510.0,4.58970451]
[1733515415423,0.0008691,101520.0,101510.0,3.52252951]
[1733515415607,0.0008691,101520.0,101510.0,3.52552951]
[1733515416688,0.0008684,101530.0,101520.0,0.0805]
[1733515416905,0.0008684,101530.0,101520.0,4.55570451]
[1733515417317,0.0008684,101530.0,101520.0,0.35352951]
[1733515417533,0.0008684,101530.0,101520.0,4.55570451]
[1733515417962,0.0008684,101530.0,101520.0,1.68752951]
[1733515418180,0.0008684,101530.0,101520.0,1.69052951]
[1733515418388,0.0008684,101530.0,101520.0,1.18652951]
[1733515418596,0.0008684,101530.0,101520.0,0.77352951]
[1733515418807,0.0008684,101530.0,101520.0,0.73952951]
[1733515419417,0.0008684,101530.0,101520.0,0.72052951]
[1733515419600,0.0008684,101530.0,101520.0,0.57452951]
[1733515420181,0.0008688,101540.0,101520.0,0.96254924]
[1733515420414,0.0408742,101590.0,101550.0,0.023]
[1733515420415,0.0473702,101570.0,101550.0,0.023]
[1733515420682,0.0008702,101570.0,101550.0,0.27302951]
[1733515421851,0.1488072,101580.0,101550.0,0.27302951]
[1733515422933,0.1488072,101580.0,101550.0,0.27602951]
[1733515423093,0.1488072,101580.0,101550.0,0.27302951]
[1733515423298,0.1488072,101580.0,101550.0,0.27402951]
[1733515423496,0.0831,101570.0,101550.0,0.27702951]
[1733515423862,0.0831,101570.0,101550.0,0.004]
[1733515424295,0.0831,101570.0,101550.0,0.0437433]
[1733515424505,0.0831,101570.0,101550.0,0.1927433]
[1733515424919,0.0831,101570.0,101550.0,0.1937433]
[1733515425539,0.0831,101570.0,101550.0,0.0397433]
[1733515425739,0.0831,101570.0,101540.0,0.15]
[1733515426023,0.0831,101570.0,101550.0,0.003]
[1733515426410,0.0831,101570.0,101550.0,0.004]
[1733515426857,0.0831,101570.0,101550.0,0.001]
[1733515427065,0.0841,101570.0,101550.0,0.001]
[1733515427485,0.24632951,101560.0,101550.0,0.001]
[1733515427701,0.27682951,101560.0,101550.0,0.004]
[1733515428354,0.27682951,101560.0,101550.0,0.003]
[1733515428575,0.1268,101560.0,101550.0,0.003]
[1733515428792,0.1315,101570.0,101550.0,0.004]
[1733515429032,0.1305,101570.0,101550.0,0.001]
[1733515429247,0.1305,101570.0,101550.0,0.153]
[1733515429456,0.002,101560.0,101550.0,0.153]